[Event "Live Chess"]
[Site "Chess.com"]
[Date "2023.05.20"]
[Round "-"]
[White "SallyTheJanitor"]
[Black "JanMur7"]
[Result "0-1"]
[WhiteElo "342"]
[BlackElo "1956"]
[TimeControl "300"]
[EndTime "12:22:41 PDT"]
[Termination "JanMur7 won - game abandoned"]

1. d4 {[%clk 0:04:58.2]} 1... Nf6 {[%clk 0:04:58.7]} 2. c4 {[%clk 0:04:57.4]}
2... e6 {[%clk 0:04:58]} 3. Nf3 {[%clk 0:04:55.9]} 3... d5 {[%clk 0:04:57.9]} 4.
e3 {[%clk 0:04:55]} 4... Be7 {[%clk 0:04:56.9]} 5. Na3 {[%clk 0:04:53.7]} 5...
O-O {[%clk 0:04:56]} 6. b3 {[%clk 0:04:52.8]} 6... b6 {[%clk 0:04:54.8]} 7. Bd3
{[%clk 0:04:52]} 7... Bb7 {[%clk 0:04:53.9]} 8. Bd2 {[%clk 0:04:51.3]} 8... Bxa3
{[%clk 0:04:52.2]} 9. Bc1 {[%clk 0:04:49.2]} 9... Bb4+ {[%clk 0:04:50.7]} 10.
Nd2 {[%clk 0:04:45.7]} 10... dxc4 {[%clk 0:04:48]} 11. bxc4 {[%clk 0:04:43.1]}
11... Ne4 {[%clk 0:04:46.9]} 12. a3 {[%clk 0:04:40.8]} 12... Bxd2+ {[%clk
0:04:23.6]} 13. Bxd2 {[%clk 0:04:39.3]} 13... Nxd2 {[%clk 0:04:23.5]} 14. Qxd2
{[%clk 0:04:38.5]} 14... Nd7 {[%clk 0:04:22.3]} 15. Qc2 {[%clk 0:04:36.7]} 15...
Nf6 {[%clk 0:04:20.8]} 16. e4 {[%clk 0:04:34.8]} 16... Qxd4 {[%clk 0:04:18.7]}
17. e5 {[%clk 0:04:32.9]} 17... Qxa1+ {[%clk 0:04:15]} 18. Kd2 {[%clk
0:04:31.2]} 18... Qxh1 {[%clk 0:04:12.3]} 19. exf6 {[%clk 0:04:29.6]} 19... Qxh2
{[%clk 0:04:11]} 20. Bxh7+ {[%clk 0:04:28.9]} 20... Qxh7 {[%clk 0:04:10.9]} 21.
Qxh7+ {[%clk 0:04:26.1]} 21... Kxh7 {[%clk 0:04:10.8]} 0-1

[Event "Live Chess"]
[Site "Chess.com"]
[Date "2023.05.20"]
[Round "-"]
[White "Wild_Tiger"]
[Black "yarek"]
[Result "0-1"]
[WhiteElo "1057"]
[BlackElo "1890"]
[TimeControl "300"]
[EndTime "12:22:43 PDT"]
[Termination "yarek won by checkmate"]

1. d4 {[%clk 0:04:58.1]} 1... g6 {[%clk 0:04:59.1]} 2. Nf3 {[%clk 0:04:56.5]}
2... Bg7 {[%clk 0:04:59]} 3. e3 {[%clk 0:04:52.5]} 3... c6 {[%clk 0:04:56.8]} 4.
Bd3 {[%clk 0:04:51.9]} 4... d5 {[%clk 0:04:54.6]} 5. O-O {[%clk 0:04:51.2]} 5...
Bg4 {[%clk 0:04:52.7]} 6. b3 {[%clk 0:04:47.4]} 6... e6 {[%clk 0:04:48.8]} 7.
Bb2 {[%clk 0:04:46.7]} 7... Nf6 {[%clk 0:04:44.9]} 8. Nbd2 {[%clk 0:04:46]} 8...
O-O {[%clk 0:04:40.5]} 9. h3 {[%clk 0:04:44.6]} 9... Bxf3 {[%clk 0:04:38.5]} 10.
Nxf3 {[%clk 0:04:42.1]} 10... Nbd7 {[%clk 0:04:38.4]} 11. Ne5 {[%clk 0:04:39.1]}
11... c5 {[%clk 0:04:33.6]} 12. f4 {[%clk 0:04:32]} 12... Rc8 {[%clk 0:04:21.5]}
13. c3 {[%clk 0:04:26.8]} 13... cxd4 {[%clk 0:04:03.5]} 14. cxd4 {[%clk
0:04:17.8]} 14... Qb6 {[%clk 0:03:41.6]} 15. Rf3 {[%clk 0:04:11.3]} 15... Nxe5
{[%clk 0:03:00.8]} 16. fxe5 {[%clk 0:04:05.8]} 16... Nd7 {[%clk 0:02:49]} 17. g4
{[%clk 0:04:00.5]} 17... Bh6 {[%clk 0:02:42.8]} 18. Kg2 {[%clk 0:03:56.9]} 18...
Rc7 {[%clk 0:02:36.5]} 19. Rc1 {[%clk 0:03:48.7]} 19... Rfc8 {[%clk 0:02:33.8]}
20. Rxc7 {[%clk 0:03:45.4]} 20... Qxc7 {[%clk 0:02:31.3]} 21. Qf1 {[%clk
0:03:33.7]} 21... Nb6 {[%clk 0:02:18.2]} 22. h4 {[%clk 0:03:17.3]} 22... a5
{[%clk 0:02:14.8]} 23. g5 {[%clk 0:03:14.4]} 23... Bf8 {[%clk 0:02:08.4]} 24.
Kg3 {[%clk 0:03:07.9]} 24... a4 {[%clk 0:02:00.8]} 25. Qe2 {[%clk 0:02:40.4]}
25... axb3 {[%clk 0:01:56.6]} 26. axb3 {[%clk 0:02:38.6]} 26... Ra8 {[%clk
0:01:51]} 27. h5 {[%clk 0:02:27.8]} 27... Ra2 {[%clk 0:01:48.5]} 28. Rf2 {[%clk
0:02:03.6]} 28... Ba3 {[%clk 0:01:44.1]} 29. hxg6 {[%clk 0:01:44.3]} 29... hxg6
{[%clk 0:01:40.8]} 30. Qf3 {[%clk 0:01:38]} 30... Rxb2 {[%clk 0:01:37.7]} 31.
Bxg6 {[%clk 0:01:33.3]} 31... Rxf2 {[%clk 0:01:34.1]} 32. Qxf2 {[%clk
0:01:31.6]} 32... fxg6 {[%clk 0:01:32.7]} 33. Qf6 {[%clk 0:01:28.2]} 33... Qf7
{[%clk 0:01:13.4]} 34. Qd8+ {[%clk 0:01:23.4]} 34... Kg7 {[%clk 0:01:12.8]} 35.
Qxb6 {[%clk 0:01:22.4]} 35... Bc1 {[%clk 0:01:11.4]} 36. Qb5 {[%clk 0:01:06.7]}
36... Bxe3 {[%clk 0:01:10.7]} 37. Qe2 {[%clk 0:01:01.7]} 37... Qf4+ {[%clk
0:01:08.2]} 38. Kg2 {[%clk 0:01:00.3]} 38... Qxg5+ {[%clk 0:01:05.6]} 39. Kf1
{[%clk 0:00:57]} 39... Qg1# {[%clk 0:01:03]} 0-1

[Event "Live Chess"]
[Site "Chess.com"]
[Date "2023.05.20"]
[Round "-"]
[White "Hacker_2009"]
[Black "mliszewski"]
[Result "0-1"]
[WhiteElo "1912"]
[BlackElo "1890"]
[TimeControl "300"]
[EndTime "12:22:43 PDT"]
[Termination "mliszewski won by resignation"]

1. d4 {[%clk 0:04:57.9]} 1... d5 {[%clk 0:04:58.7]} 2. Nf3 {[%clk 0:04:56.6]}
2... Nc6 {[%clk 0:04:56.1]} 3. e3 {[%clk 0:04:55.1]} 3... Bg4 {[%clk 0:04:53.7]}
4. c4 {[%clk 0:04:54.3]} 4... dxc4 {[%clk 0:04:49.6]} 5. Bxc4 {[%clk 0:04:52.7]}
5... a6 {[%clk 0:04:49.2]} 6. Qb3 {[%clk 0:04:51.1]} 6... e6 {[%clk 0:04:41.5]}
7. Qxb7 {[%clk 0:04:49.1]} 7... Na5 {[%clk 0:04:38.6]} 8. Qe4 {[%clk 0:04:40.9]}
8... Bxf3 {[%clk 0:04:35.8]} 9. Qxf3 {[%clk 0:04:39.6]} 9... Nxc4 {[%clk
0:04:34.5]} 10. b3 {[%clk 0:04:38.5]} 10... Nd6 {[%clk 0:04:32.4]} 11. O-O
{[%clk 0:04:36.5]} 11... Nf6 {[%clk 0:04:31.2]} 12. Bb2 {[%clk 0:04:35.6]} 12...
Be7 {[%clk 0:04:28.9]} 13. Nc3 {[%clk 0:04:34.7]} 13... O-O {[%clk 0:04:27.5]}
14. e4 {[%clk 0:04:34]} 14... Nb5 {[%clk 0:04:21.9]} 15. Nxb5 {[%clk 0:04:32.5]}
15... axb5 {[%clk 0:04:20.4]} 16. Rfd1 {[%clk 0:04:29.5]} 16... Qc8 {[%clk
0:04:11.7]} 17. d5 {[%clk 0:04:22.5]} 17... exd5 {[%clk 0:04:08.6]} 18. exd5
{[%clk 0:04:21.6]} 18... Rd8 {[%clk 0:04:04.3]} 19. d6 {[%clk 0:04:16.6]} 19...
cxd6 {[%clk 0:03:57.6]} 20. Rac1 {[%clk 0:04:14.1]} 20... Qa6 {[%clk 0:03:52.7]}
21. a3 {[%clk 0:04:11.1]} 21... Ne8 {[%clk 0:03:37.7]} 22. Qg3 {[%clk
0:03:58.1]} 22... Bf6 {[%clk 0:03:36.6]} 23. Bxf6 {[%clk 0:03:56]} 23... Nxf6
{[%clk 0:03:35.7]} 24. Ra1 {[%clk 0:03:54.3]} 24... d5 {[%clk 0:03:33.4]} 25. a4
{[%clk 0:03:52.7]} 25... bxa4 {[%clk 0:03:32.3]} 26. Rxa4 {[%clk 0:03:49.9]}
26... Qb5 {[%clk 0:03:30.8]} 27. Rxa8 {[%clk 0:03:48.7]} 27... Rxa8 {[%clk
0:03:29.8]} 28. Qc3 {[%clk 0:03:47.2]} 28... h6 {[%clk 0:03:24.5]} 29. h3 {[%clk
0:03:45.9]} 29... Rd8 {[%clk 0:03:18.7]} 30. Rd3 {[%clk 0:03:45.2]} 30... Ne4
{[%clk 0:03:13.3]} 31. Qd4 {[%clk 0:03:35]} 31... Qb7 {[%clk 0:03:05.9]} 32. Re3
{[%clk 0:03:31.9]} 32... Nf6 {[%clk 0:02:58.7]} 33. Rg3 {[%clk 0:03:28.6]} 33...
Qe7 {[%clk 0:02:54.7]} 34. b4 {[%clk 0:03:24.5]} 34... Rb8 {[%clk 0:02:44.7]}
35. Rb3 {[%clk 0:03:04.4]} 35... Qe1+ {[%clk 0:02:34.1]} 36. Kh2 {[%clk
0:03:02]} 36... Qe4 {[%clk 0:02:31.8]} 37. Qc5 {[%clk 0:02:51.1]} 37... Qc4
{[%clk 0:02:28.9]} 38. Qd6 {[%clk 0:02:44.5]} 38... Rb5 {[%clk 0:02:09.7]} 39.
Rg3 {[%clk 0:02:40.4]} 39... Ne4 {[%clk 0:01:55]} 40. Rf3 {[%clk 0:02:22.3]}
40... Nxd6 {[%clk 0:01:51.9]} 0-1

[Event "Live Chess"]
[Site "Chess.com"]
[Date "2023.05.20"]
[Round "-"]
[White "domrobson"]
[Black "SavagePawn7"]
[Result "0-1"]
[WhiteElo "1723"]
[BlackElo "796"]
[TimeControl "300"]
[EndTime "12:22:43 PDT"]
[Termination "SavagePawn7 won by resignation"]

1. d4 {[%clk 0:04:59.3]} 1... e5 {[%clk 0:04:57.7]} 2. c4 {[%clk 0:04:58.9]}
2... exd4 {[%clk 0:04:56]} 3. Qxd4 {[%clk 0:04:57.9]} 3... Nc6 {[%clk
0:04:52.3]} 4. Qd1 {[%clk 0:04:57.5]} 4... Nf6 {[%clk 0:04:50.2]} 5. Nf3 {[%clk
0:04:56.4]} 5... Bc5 {[%clk 0:04:47]} 6. Bg5 {[%clk 0:04:55.1]} 6... h6 {[%clk
0:04:43.3]} 7. Bxf6 {[%clk 0:04:53.7]} 7... Qxf6 {[%clk 0:04:41.5]} 8. Nc3
{[%clk 0:04:52.8]} 8... Bb4 {[%clk 0:04:33]} 9. Rc1 {[%clk 0:04:50.2]} 9... O-O
{[%clk 0:04:28.3]} 10. e3 {[%clk 0:04:49.2]} 10... Ne5 {[%clk 0:04:21.9]} 11.
Nxe5 {[%clk 0:04:47.4]} 11... Qxe5 {[%clk 0:04:20.7]} 12. Be2 {[%clk 0:04:46.8]}
12... d6 {[%clk 0:04:13]} 13. O-O {[%clk 0:04:45.7]} 13... Be6 {[%clk
0:03:58.3]} 14. Qa4 {[%clk 0:04:40.4]} 14... c5 {[%clk 0:03:38.3]} 15. a3 {[%clk
0:04:33.7]} 15... Bxc3 {[%clk 0:03:33.1]} 16. Rxc3 {[%clk 0:04:32]} 16... a6
{[%clk 0:03:23.9]} 17. b4 {[%clk 0:04:28.5]} 17... b5 {[%clk 0:03:22]} 18. cxb5
{[%clk 0:04:26.4]} 18... axb5 {[%clk 0:03:20.3]} 19. Qxb5 {[%clk 0:04:25.9]}
19... Qxc3 {[%clk 0:03:12.9]} 20. bxc5 {[%clk 0:04:23.2]} 0-1

[Event "Live Chess"]
[Site "Chess.com"]
[Date "2023.05.20"]
[Round "-"]
[White "wot-not"]
[Black "Chesscoach_Golichenko"]
[Result "0-1"]
[WhiteElo "1483"]
[BlackElo "2648"]
[TimeControl "300"]
[EndTime "12:22:45 PDT"]
[Termination "Chesscoach_Golichenko won by resignation"]

1. d4 {[%clk 0:04:53.5]} 1... Nf6 {[%clk 0:04:57.4]} 2. c4 {[%clk 0:04:52.2]}
2... e6 {[%clk 0:04:51.5]} 3. Nc3 {[%clk 0:04:50.7]} 3... Bb4 {[%clk 0:04:48.2]}
4. e3 {[%clk 0:04:49.4]} 4... O-O {[%clk 0:04:39.4]} 5. Bd3 {[%clk 0:04:48.4]}
5... b6 {[%clk 0:04:37.3]} 6. Ne2 {[%clk 0:04:47.3]} 6... Bb7 {[%clk 0:04:35.9]}
7. f3 {[%clk 0:04:44.7]} 7... d5 {[%clk 0:04:33.6]} 8. a3 {[%clk 0:04:41.9]}
8... Be7 {[%clk 0:04:30.1]} 9. cxd5 {[%clk 0:04:37.8]} 9... exd5 {[%clk
0:04:28.5]} 10. Qc2 {[%clk 0:04:30.8]} 10... c5 {[%clk 0:04:26.3]} 11. dxc5
{[%clk 0:04:16.8]} 11... bxc5 {[%clk 0:04:23.9]} 12. Bd2 {[%clk 0:04:05.5]}
12... g6 {[%clk 0:04:21.8]} 13. Ng3 {[%clk 0:03:50.6]} 13... d4 {[%clk
0:04:16.1]} 14. Nce4 {[%clk 0:03:42.4]} 14... Nbd7 {[%clk 0:04:09]} 15. O-O-O
{[%clk 0:03:37.8]} 15... c4 {[%clk 0:03:59.8]} 16. Nxf6+ {[%clk 0:03:31.4]}
16... Bxf6 {[%clk 0:03:56.2]} 17. Be4 {[%clk 0:03:30.7]} 17... d3 {[%clk
0:03:50.9]} 18. Qb1 {[%clk 0:03:19.5]} 18... Rb8 {[%clk 0:03:46.9]} 19. Bxb7
{[%clk 0:03:07.8]} 19... Rxb7 {[%clk 0:03:36.9]} 20. Ne4 {[%clk 0:03:06.9]}
20... Bxb2+ {[%clk 0:03:32.7]} 21. Qxb2 {[%clk 0:03:06.4]} 21... Rxb2 {[%clk
0:03:32.2]} 22. Kxb2 {[%clk 0:03:05.9]} 22... Qb6+ {[%clk 0:03:31.7]} 23. Ka1
{[%clk 0:02:58]} 23... Nc5 {[%clk 0:03:15.5]} 24. Nxc5 {[%clk 0:02:53.9]} 24...
Qxc5 {[%clk 0:03:15.4]} 25. Bb4 {[%clk 0:02:45.7]} 25... Qe5+ {[%clk 0:03:14.2]}
26. Ka2 {[%clk 0:02:40.8]} 26... Rd8 {[%clk 0:03:10.2]} 27. e4 {[%clk
0:02:34.2]} 27... c3 {[%clk 0:03:08]} 28. Kb3 {[%clk 0:01:46.4]} 28... a5 {[%clk
0:02:57.1]} 29. Bxc3 {[%clk 0:01:23.1]} 29... Rb8+ {[%clk 0:02:43.4]} 0-1

[Event "Live Chess"]
[Site "Chess.com"]
[Date "2023.05.20"]
[Round "-"]
[White "HugeManAmin"]
[Black "NatashaRegan"]
[Result "0-1"]
[WhiteElo "1399"]
[BlackElo "1828"]
[TimeControl "300"]
[EndTime "12:22:59 PDT"]
[Termination "NatashaRegan won by resignation"]

1. e4 {[%clk 0:04:58.6]} 1... Nf6 {[%clk 0:04:54.7]} 2. Nc3 {[%clk 0:04:54.6]}
2... e5 {[%clk 0:04:52.5]} 3. Nf3 {[%clk 0:04:52.8]} 3... Nc6 {[%clk 0:04:50]}
4. Bc4 {[%clk 0:04:50.6]} 4... Be7 {[%clk 0:04:45.9]} 5. d4 {[%clk 0:04:44]}
5... exd4 {[%clk 0:04:41]} 6. Nxd4 {[%clk 0:04:42.6]} 6... O-O {[%clk
0:04:37.5]} 7. O-O {[%clk 0:04:36.9]} 7... Ne5 {[%clk 0:04:30.7]} 8. Bb3 {[%clk
0:04:24.1]} 8... d6 {[%clk 0:04:29.1]} 9. f4 {[%clk 0:04:20.1]} 9... Bg4 {[%clk
0:04:22.5]} 10. Qd2 {[%clk 0:03:50.6]} 10... Ng6 {[%clk 0:04:13.8]} 11. f5
{[%clk 0:03:33.2]} 11... Ne5 {[%clk 0:04:09.9]} 12. Nf3 {[%clk 0:03:18.1]} 12...
Bxf3 {[%clk 0:03:59.6]} 13. gxf3 {[%clk 0:03:16.4]} 13... c6 {[%clk 0:03:56.5]}
14. Kf2 {[%clk 0:02:59.7]} 14... Qb6+ {[%clk 0:03:49.7]} 15. Ke1 {[%clk
0:02:52.2]} 15... d5 {[%clk 0:03:42]} 16. Rg1 {[%clk 0:02:44.8]} 16... Qxg1+
{[%clk 0:03:39.1]} 0-1

[Event "Live Chess"]
[Site "Chess.com"]
[Date "2023.05.20"]
[Round "-"]
[White "MartinWalker4"]
[Black "Zeraora719"]
[Result "1-0"]
[WhiteElo "2075"]
[BlackElo "761"]
[TimeControl "300"]
[EndTime "12:23:00 PDT"]
[Termination "MartinWalker4 won by checkmate"]

1. e4 {[%clk 0:04:57.6]} 1... e5 {[%clk 0:04:58.1]} 2. Nf3 {[%clk 0:04:56]} 2...
Nc6 {[%clk 0:04:56.4]} 3. Bb5 {[%clk 0:04:54.7]} 3... a6 {[%clk 0:04:54.7]} 4.
Ba4 {[%clk 0:04:53.7]} 4... b5 {[%clk 0:04:53.6]} 5. Bb3 {[%clk 0:04:51.8]} 5...
Nd4 {[%clk 0:04:52.6]} 6. Nxd4 {[%clk 0:04:44.5]} 6... exd4 {[%clk 0:04:51.5]}
7. O-O {[%clk 0:04:43.4]} 7... a5 {[%clk 0:04:49.7]} 8. a4 {[%clk 0:04:38.8]}
8... bxa4 {[%clk 0:04:44.7]} 9. Bxa4 {[%clk 0:04:36.5]} 9... Nf6 {[%clk
0:04:37.4]} 10. d3 {[%clk 0:04:34.8]} 10... c6 {[%clk 0:04:20.8]} 11. f4 {[%clk
0:04:29.5]} 11... d5 {[%clk 0:04:14]} 12. Bxc6+ {[%clk 0:04:26.5]} 12... Bd7
{[%clk 0:04:05.7]} 13. Bxa8 {[%clk 0:04:24.7]} 13... Ng4 {[%clk 0:04:00.6]} 14.
Bxd5 {[%clk 0:04:10.2]} 14... Qh4 {[%clk 0:03:56.7]} 15. h3 {[%clk 0:04:08.6]}
15... Ne3 {[%clk 0:03:47.1]} 16. Bxe3 {[%clk 0:04:05.9]} 16... dxe3 {[%clk
0:03:45.2]} 17. Qf3 {[%clk 0:04:04.1]} 17... g5 {[%clk 0:03:28.2]} 18. Rxa5
{[%clk 0:03:56.5]} 18... gxf4 {[%clk 0:03:26.2]} 19. Ra8+ {[%clk 0:03:49.4]}
19... Ke7 {[%clk 0:03:24.2]} 20. Qxf4 {[%clk 0:03:48.1]} 20... Be6 {[%clk
0:03:12]} 21. Qxh4+ {[%clk 0:03:34.1]} 21... Kd7 {[%clk 0:03:05.5]} 22. Qd8#
{[%clk 0:03:32.4]} 1-0

[Event "Live Chess"]
[Site "Chess.com"]
[Date "2023.05.20"]
[Round "-"]
[White "zdanevych"]
[Black "JoeRoot66"]
[Result "1-0"]
[WhiteElo "1513"]
[BlackElo "1918"]
[TimeControl "300"]
[EndTime "12:23:02 PDT"]
[Termination "zdanevych won by resignation"]

1. d4 {[%clk 0:04:59.3]} 1... d5 {[%clk 0:04:59.2]} 2. c4 {[%clk 0:04:58.9]}
2... e6 {[%clk 0:04:58.5]} 3. cxd5 {[%clk 0:04:58.1]} 3... exd5 {[%clk
0:04:58.4]} 4. Nc3 {[%clk 0:04:57.4]} 4... Nf6 {[%clk 0:04:58.1]} 5. Nf3 {[%clk
0:04:57]} 5... Be7 {[%clk 0:04:54.3]} 6. h3 {[%clk 0:04:56.5]} 6... O-O {[%clk
0:04:53.8]} 7. Bf4 {[%clk 0:04:55.8]} 7... c6 {[%clk 0:04:53.1]} 8. e3 {[%clk
0:04:55.2]} 8... Re8 {[%clk 0:04:52.3]} 9. Bd3 {[%clk 0:04:54.6]} 9... Nbd7
{[%clk 0:04:51.5]} 10. O-O {[%clk 0:04:54]} 10... Nf8 {[%clk 0:04:51]} 11. Rc1
{[%clk 0:04:49.9]} 11... Bd6 {[%clk 0:04:50]} 12. Bxd6 {[%clk 0:04:48.4]} 12...
Qxd6 {[%clk 0:04:49.9]} 13. Bb1 {[%clk 0:04:47.9]} 13... Ng6 {[%clk 0:04:47.4]}
14. Bxg6 {[%clk 0:04:42.6]} 14... hxg6 {[%clk 0:04:46.9]} 15. Ne5 {[%clk
0:04:41.3]} 15... Ne4 {[%clk 0:04:43.7]} 16. Nxe4 {[%clk 0:04:38.9]} 16... dxe4
{[%clk 0:04:43.6]} 17. Qc2 {[%clk 0:04:36.2]} 17... Bf5 {[%clk 0:04:41.9]} 18.
Qb3 {[%clk 0:04:33.8]} 18... Qc7 {[%clk 0:04:36.9]} 19. Rc5 {[%clk 0:04:22.6]}
19... Be6 {[%clk 0:04:28]} 20. Qc3 {[%clk 0:04:15.7]} 20... Bd5 {[%clk
0:04:22.2]} 21. f3 {[%clk 0:04:00.6]} 21... b6 {[%clk 0:04:15.7]} 22. Rxd5
{[%clk 0:03:57.7]} 22... Rac8 {[%clk 0:03:56.8]} 23. Rd7 {[%clk 0:03:51.3]} 1-0

[Event "Live Chess"]
[Site "Chess.com"]
[Date "2023.05.20"]
[Round "-"]
[White "TobyQuaite"]
[Black "McSlash1"]
[Result "1-0"]
[WhiteElo "1689"]
[BlackElo "2052"]
[TimeControl "300"]
[EndTime "12:23:03 PDT"]
[Termination "TobyQuaite won by resignation"]

1. e4 {[%clk 0:04:59.3]} 1... c5 {[%clk 0:04:59.4]} 2. Nf3 {[%clk 0:04:57.5]}
2... d6 {[%clk 0:04:58.8]} 3. d4 {[%clk 0:04:56.7]} 3... cxd4 {[%clk 0:04:58.7]}
4. Nxd4 {[%clk 0:04:56.3]} 4... Nf6 {[%clk 0:04:58.1]} 5. Nc3 {[%clk 0:04:55.8]}
5... g6 {[%clk 0:04:57.4]} 6. Bg5 {[%clk 0:04:52]} 6... Bg7 {[%clk 0:04:56.8]}
7. f4 {[%clk 0:04:50.2]} 7... h6 {[%clk 0:04:55.9]} 8. Bxf6 {[%clk 0:04:48.5]}
8... Bxf6 {[%clk 0:04:55.8]} 9. Nb3 {[%clk 0:04:45.5]} 9... O-O {[%clk 0:04:54]}
10. Qf3 {[%clk 0:04:44.4]} 10... h5 {[%clk 0:04:51.7]} 11. h3 {[%clk 0:04:38.3]}
11... Nc6 {[%clk 0:04:49.4]} 12. g4 {[%clk 0:04:34.8]} 12... Bh4+ {[%clk
0:04:40.9]} 13. Kd2 {[%clk 0:04:28.6]} 13... Na5 {[%clk 0:04:33.5]} 14. gxh5
{[%clk 0:04:23.9]} 14... Nxb3+ {[%clk 0:04:31.2]} 15. axb3 {[%clk 0:04:23.2]}
15... Kg7 {[%clk 0:04:27.2]} 16. hxg6 {[%clk 0:04:08.1]} 16... fxg6 {[%clk
0:04:27.1]} 17. Rg1 {[%clk 0:04:02.4]} 17... e5 {[%clk 0:04:23.4]} 18. Qh5
{[%clk 0:03:57.2]} 18... g5 {[%clk 0:04:11.8]} 19. Qxh4 {[%clk 0:03:54.7]} 19...
exf4 {[%clk 0:03:58.3]} 20. Qxg5+ {[%clk 0:03:51.9]} 20... Qxg5 {[%clk
0:03:55.4]} 21. Rxg5+ {[%clk 0:03:51.8]} 21... Kf6 {[%clk 0:03:55.1]} 22. Rd5
{[%clk 0:03:41.6]} 22... Ke6 {[%clk 0:03:53.1]} 23. Bc4 {[%clk 0:03:40.1]} 23...
Ke7 {[%clk 0:03:51.4]} 24. Nb5 {[%clk 0:03:37.9]} 24... Be6 {[%clk 0:03:49.3]}
25. Rxd6 {[%clk 0:03:34.3]} 25... Bxc4 {[%clk 0:03:47.4]} 26. bxc4 {[%clk
0:03:34.2]} 26... a6 {[%clk 0:03:46.9]} 27. Rb6 {[%clk 0:03:25.2]} 27... axb5
{[%clk 0:03:38.5]} 28. Rxb7+ {[%clk 0:03:24.2]} 28... Ke6 {[%clk 0:03:38]} 29.
Rxa8 {[%clk 0:03:21.6]} 29... Rxa8 {[%clk 0:03:37.9]} 30. Rxb5 {[%clk
0:03:21.1]} 30... Rh8 {[%clk 0:03:30.6]} 31. Rf5 {[%clk 0:03:18.8]} 31... Rh4
{[%clk 0:03:28.8]} 32. b4 {[%clk 0:03:15.2]} 32... Kd6 {[%clk 0:03:27]} 33. b5
{[%clk 0:03:12.6]} 33... Kd7 {[%clk 0:03:23.3]} 34. c5 {[%clk 0:03:05.6]} 34...
Ke6 {[%clk 0:03:22.3]} 35. b6 {[%clk 0:03:02.3]} 35... Kd7 {[%clk 0:03:21.1]}
36. Kc3 {[%clk 0:02:59.2]} 36... Rxh3+ {[%clk 0:03:18.4]} 37. Kb4 {[%clk
0:02:58.8]} 37... f3 {[%clk 0:03:15.3]} 38. Kb5 {[%clk 0:02:54.4]} 38... Rh2
{[%clk 0:03:11.8]} 39. Rxf3 {[%clk 0:02:51.7]} 39... Rxc2 {[%clk 0:03:10.5]} 40.
Rd3+ {[%clk 0:02:50.1]} 40... Kc8 {[%clk 0:03:09.2]} 41. c6 {[%clk 0:02:46.8]}
41... Rb2+ {[%clk 0:03:08.2]} 42. Kc5 {[%clk 0:02:46.3]} 42... Rc2+ {[%clk
0:03:07.4]} 43. Kd6 {[%clk 0:02:42.3]} 43... Re2 {[%clk 0:03:00.4]} 44. e5
{[%clk 0:02:40.5]} 44... Rh2 {[%clk 0:02:56.6]} 45. b7+ {[%clk 0:02:35.3]} 45...
Kb8 {[%clk 0:02:54.2]} 46. Ra3 {[%clk 0:02:34]} 46... Rd2+ {[%clk 0:02:51.7]}
47. Ke6 {[%clk 0:02:33.4]} 47... Kc7 {[%clk 0:02:49.3]} 48. Ra8 {[%clk
0:02:28.7]} 1-0

[Event "Live Chess"]
[Site "Chess.com"]
[Date "2023.05.20"]
[Round "-"]
[White "Judgen68"]
[Black "1600x"]
[Result "0-1"]
[WhiteElo "1241"]
[BlackElo "1702"]
[TimeControl "300"]
[EndTime "12:23:07 PDT"]
[Termination "1600x won by resignation"]

1. d4 {[%clk 0:04:55.3]} 1... e5 {[%clk 0:04:59.9]} 2. dxe5 {[%clk 0:04:53.3]}
2... d5 {[%clk 0:04:52.4]} 3. Nf3 {[%clk 0:04:50.6]} 3... c6 {[%clk 0:04:52.3]}
4. c3 {[%clk 0:04:47.2]} 4... Nd7 {[%clk 0:04:52.2]} 5. Bf4 {[%clk 0:04:44.3]}
5... f6 {[%clk 0:04:49.7]} 6. exf6 {[%clk 0:04:41]} 6... Ngxf6 {[%clk
0:04:47.9]} 7. h3 {[%clk 0:04:35.5]} 7... Ne4 {[%clk 0:04:46.5]} 8. e3 {[%clk
0:04:29]} 8... h5 {[%clk 0:04:43.4]} 9. Nbd2 {[%clk 0:04:26.9]} 9... Ndc5 {[%clk
0:04:15.8]} 10. Nxe4 {[%clk 0:04:18.2]} 10... Nxe4 {[%clk 0:04:02.5]} 11. Qd4
{[%clk 0:04:16.9]} 11... Qf6 {[%clk 0:03:59.2]} 12. Qxf6 {[%clk 0:04:09.7]}
12... gxf6 {[%clk 0:03:59.1]} 13. c4 {[%clk 0:03:58.2]} 13... Bb4+ {[%clk
0:03:56.9]} 14. Ke2 {[%clk 0:03:50.3]} 14... dxc4 {[%clk 0:03:50.3]} 15. a3
{[%clk 0:03:42.9]} 15... Ba5 {[%clk 0:03:48.7]} 16. Nd4 {[%clk 0:03:27.6]} 16...
c3 {[%clk 0:03:37.7]} 17. bxc3 {[%clk 0:03:24.3]} 17... Bxc3 {[%clk 0:03:35.5]}
18. Rc1 {[%clk 0:03:18.3]} 18... Bb2 {[%clk 0:03:34.3]} 19. Rc2 {[%clk
0:03:10.7]} 19... Bxa3 {[%clk 0:03:32.8]} 20. Kf3 {[%clk 0:03:04.2]} 20... Ng5+
{[%clk 0:03:30.4]} 21. Bxg5 {[%clk 0:02:54]} 21... fxg5 {[%clk 0:03:30.3]} 22.
g3 {[%clk 0:02:52.9]} 22... h4 {[%clk 0:03:28.7]} 23. Bd3 {[%clk 0:02:49]} 23...
Bd6 {[%clk 0:03:23.1]} 24. Bg6+ {[%clk 0:02:46.1]} 24... Ke7 {[%clk 0:03:21.5]}
25. g4 {[%clk 0:02:18.2]} 25... Kf6 {[%clk 0:03:17]} 26. Bf5 {[%clk 0:02:06.9]}
26... Bxf5 {[%clk 0:03:13]} 27. Nxf5 {[%clk 0:02:05.2]} 27... Bb4 {[%clk
0:03:10.5]} 28. Rd1 {[%clk 0:01:38.6]} 28... Rhd8 {[%clk 0:03:08]} 29. Rxd8
{[%clk 0:01:33]} 29... Rxd8 {[%clk 0:02:57.6]} 30. Rc4 {[%clk 0:01:32]} 30... c5
{[%clk 0:02:55.9]} 31. e4 {[%clk 0:01:25.6]} 31... Ke5 {[%clk 0:02:49.5]} 32.
Ne3 {[%clk 0:01:23.7]} 32... b5 {[%clk 0:02:47.2]} 33. Rc2 {[%clk 0:01:18.2]}
33... a5 {[%clk 0:02:43.7]} 34. Nd5 {[%clk 0:01:16.2]} 34... c4 {[%clk
0:02:25.4]} 35. Nc7 {[%clk 0:01:03.4]} 35... Rb8 {[%clk 0:02:22.3]} 36. Rc1
{[%clk 0:00:48.3]} 36... Bc5 {[%clk 0:02:20.5]} 37. Rd1 {[%clk 0:00:45.8]} 37...
Rf8+ {[%clk 0:02:18.2]} 38. Kg2 {[%clk 0:00:37.8]} 38... Rxf2+ {[%clk
0:01:57.9]} 39. Kh1 {[%clk 0:00:35.2]} 0-1